[Event "December 5 Late 2023"]
[Site "https://www.chess.com"]
[Date "2023.12.05"]
[Round "5"]
[White "Oparin, Grigoriy"]
[Black "Annaberdiyev, Meylis"]
[Result "1-0"]
[Board "16"]
[TimeControl "180+1"]
[WhiteFideId "24125890"]
[BlackFideId "14000563"]
[WhiteElo "3047"]
[BlackElo "2701"]
[WhiteTeam "USA"]
[BlackTeam "TKM"]
[WhiteClock "0:01:27"]
[BlackClock "0:00:00"]

1. d4 {[%clk 0:03:00]}  Nf6 {[%clk 0:02:59]} 2. c4 {[%clk 0:03:01]}  e6 {[%clk 0:02:59]} 3. Nc3 {[%clk 0:03:01]}  d5 {[%clk 0:03:00]} 4. cxd5 {[%clk 0:03:01]}  exd5 {[%clk 0:03:00]} 5. Bg5 {[%clk 0:03:02]}  c6 {[%clk 0:03:00]} 6. e3 {[%clk 0:03:02]}  Bd6 {[%clk 0:03:00]} 7. Bd3 {[%clk 0:03:00]}  O-O {[%clk 0:03:00]} 8. Qc2 {[%clk 0:02:59]}  h6 {[%clk 0:02:59]} 9. Bh4 {[%clk 0:03:00]}  a5 {[%clk 0:02:51]} 10. Nf3 {[%clk 0:02:58]}  Re8 {[%clk 0:02:50]} 11. O-O {[%clk 0:02:54]}  Na6 {[%clk 0:02:49]} 12. a3 {[%clk 0:02:54]}  Nc7 {[%clk 0:02:48]} 13. e4 {[%clk 0:02:45]}  dxe4 {[%clk 0:02:38]} 14. Nxe4 {[%clk 0:02:45]}  Be7 {[%clk 0:02:38]} 15. Nc5 {[%clk 0:02:37]}  b6 {[%clk 0:01:50]} 16. Na4 {[%clk 0:02:33]}  Ncd5 {[%clk 0:01:33]} 17. Rfe1 {[%clk 0:02:32]}  Bb7 {[%clk 0:00:37]} 18. Ne5 {[%clk 0:02:28]}  Nf4 {[%clk 0:00:30]} 19. Bc4 {[%clk 0:01:46]}  N6d5 {[%clk 0:00:25]} 20. Bg3 {[%clk 0:01:45]}  Bg5 {[%clk 0:00:12]} 21. Nc3 {[%clk 0:01:40]}  c5 {[%clk 0:00:07]} 22. Qf5 {[%clk 0:01:32]}  Qf6 {[%clk 0:00:02]} 23. Qxf6 {[%clk 0:01:30]}  Nxf6 {[%clk 0:00:03]} 24. Bxf7+ {[%clk 0:01:29]}  Kf8 {[%clk 0:00:00]} 25. Bxe8 {[%clk 0:01:27]} 1-0

[Event "December 5 Late 2023"]
[Site "https://www.chess.com"]
[Date "2023.12.05"]
[Round "5"]
[White "Deac, Bogdan-Daniel"]
[Black "Kanakaris, Georgios"]
[Result "1-0"]
[Board "19"]
[TimeControl "180+1"]
[WhiteFideId "1226380"]
[BlackFideId "4209460"]
[WhiteElo "2992"]
[BlackElo "2686"]
[WhiteTeam "ROU"]
[BlackTeam "GRE"]
[WhiteClock "0:00:16"]
[BlackClock "0:00:00"]

1. b3 {[%clk 0:03:00]}  e5 {[%clk 0:02:58]} 2. Bb2 {[%clk 0:02:59]}  Nc6 {[%clk 0:02:58]} 3. Nf3 {[%clk 0:03:00]}  d6 {[%clk 0:02:50]} 4. c4 {[%clk 0:02:59]}  Bg4 {[%clk 0:02:49]} 5. Nc3 {[%clk 0:02:58]}  Nf6 {[%clk 0:02:42]} 6. g3 {[%clk 0:02:53]}  Bxf3 {[%clk 0:02:30]} 7. exf3 {[%clk 0:02:53]}  Nd4 {[%clk 0:02:31]} 8. Bg2 {[%clk 0:02:50]}  Be7 {[%clk 0:02:27]} 9. Ne2 {[%clk 0:02:36]}  Nxe2 {[%clk 0:02:20]} 10. Qxe2 {[%clk 0:02:37]}  O-O {[%clk 0:02:18]} 11. f4 {[%clk 0:02:36]}  exf4 {[%clk 0:01:56]} 12. Bxb7 {[%clk 0:02:35]}  Rb8 {[%clk 0:01:56]} 13. Bg2 {[%clk 0:02:35]}  Re8 {[%clk 0:01:51]} 14. O-O {[%clk 0:02:34]}  d5 {[%clk 0:01:34]} 15. Qd3 {[%clk 0:02:13]}  dxc4 {[%clk 0:01:25]} 16. Qxc4 {[%clk 0:02:13]}  Qxd2 {[%clk 0:01:23]} 17. Bc1 {[%clk 0:02:12]}  Qb4 {[%clk 0:01:10]} 18. Qxb4 {[%clk 0:02:09]}  Rxb4 {[%clk 0:01:10]} 19. Bxf4 {[%clk 0:02:10]}  Bd6 {[%clk 0:01:06]} 20. Bxd6 {[%clk 0:02:09]}  cxd6 {[%clk 0:01:07]} 21. Rfd1 {[%clk 0:02:10]}  Rd8 {[%clk 0:01:04]} 22. Rac1 {[%clk 0:02:07]}  a5 {[%clk 0:01:00]} 23. Rxd6 {[%clk 0:02:05]}  Rdb8 {[%clk 0:00:52]} 24. Ra6 {[%clk 0:01:58]}  a4 {[%clk 0:00:51]} 25. Rxa4 {[%clk 0:01:58]}  Rxa4 {[%clk 0:00:51]} 26. bxa4 {[%clk 0:01:59]}  g5 {[%clk 0:00:48]} 27. Bf1 {[%clk 0:01:20]}  Rb2 {[%clk 0:00:45]} 28. Ra1 {[%clk 0:01:07]}  Rb4 {[%clk 0:00:21]} 29. a5 {[%clk 0:00:59]}  Ra4 {[%clk 0:00:20]} 30. a6 {[%clk 0:01:00]}  Ne4 {[%clk 0:00:21]} 31. a3 {[%clk 0:00:53]}  Nd2 {[%clk 0:00:19]} 32. Bb5 {[%clk 0:00:50]}  Ra5 {[%clk 0:00:10]} 33. a4 {[%clk 0:00:50]}  Nb3 {[%clk 0:00:09]} 34. Ra3 {[%clk 0:00:23]}  Nc5 {[%clk 0:00:10]} 35. Rc3 {[%clk 0:00:15]}  Nxa6 {[%clk 0:00:06]} 36. Rc8+ {[%clk 0:00:15]}  Kg7 {[%clk 0:00:00]} 37. Ra8 {[%clk 0:00:16]} 1-0

[Event "December 5 Late 2023"]
[Site "https://www.chess.com"]
[Date "2023.12.05"]
[Round "5"]
[White "Terry, Renato"]
[Black "Amburgy, Ryan"]
[Result "1-0"]
[Board "20"]
[TimeControl "180+1"]
[WhiteFideId "3803457"]
[BlackFideId "30924820"]
[WhiteElo "2976"]
[BlackElo "2677"]
[WhiteTeam "PER"]
[BlackTeam "USA"]
[WhiteClock "0:00:03"]
[BlackClock "0:00:01"]

1. e4 {[%clk 0:03:00]}  c6 {[%clk 0:02:57]} 2. Nf3 {[%clk 0:02:53]}  d5 {[%clk 0:02:58]} 3. exd5 {[%clk 0:02:54]}  cxd5 {[%clk 0:02:58]} 4. Ne5 {[%clk 0:02:54]}  Nc6 {[%clk 0:02:58]} 5. Bb5 {[%clk 0:02:50]}  Bd7 {[%clk 0:02:58]} 6. Nxd7 {[%clk 0:02:45]}  Qxd7 {[%clk 0:02:59]} 7. d4 {[%clk 0:02:46]}  e6 {[%clk 0:02:58]} 8. c3 {[%clk 0:02:46]}  Bd6 {[%clk 0:02:58]} 9. O-O {[%clk 0:02:46]}  Nge7 {[%clk 0:02:57]} 10. Re1 {[%clk 0:02:41]}  O-O {[%clk 0:02:56]} 11. Nd2 {[%clk 0:02:37]}  a6 {[%clk 0:02:47]} 12. Bd3 {[%clk 0:02:35]}  b5 {[%clk 0:02:41]} 13. a3 {[%clk 0:02:21]}  Ng6 {[%clk 0:02:34]} 14. Qh5 {[%clk 0:02:16]}  e5 {[%clk 0:02:09]} 15. Bf5 {[%clk 0:02:09]}  Qc7 {[%clk 0:02:09]} 16. Nf3 {[%clk 0:02:00]}  e4 {[%clk 0:02:04]} 17. Ng5 {[%clk 0:02:00]}  h6 {[%clk 0:02:04]} 18. Ne6 {[%clk 0:01:26]}  fxe6 {[%clk 0:02:02]} 19. Bxe6+ {[%clk 0:01:26]}  Kh7 {[%clk 0:02:00]} 20. Bxd5 {[%clk 0:01:26]}  Rae8 {[%clk 0:01:11]} 21. Bxe4 {[%clk 0:01:21]}  Rxe4 {[%clk 0:01:11]} 22. Rxe4 {[%clk 0:01:22]}  Na5 {[%clk 0:00:50]} 23. g3 {[%clk 0:01:07]}  Nc4 {[%clk 0:00:40]} 24. Rb1 {[%clk 0:00:56]}  Qf7 {[%clk 0:00:38]} 25. Qe2 {[%clk 0:00:50]}  Qf5 {[%clk 0:00:38]} 26. b3 {[%clk 0:00:50]}  Na5 {[%clk 0:00:37]} 27. Bd2 {[%clk 0:00:46]}  Re8 {[%clk 0:00:32]} 28. f3 {[%clk 0:00:43]}  Rf8 {[%clk 0:00:32]} 29. Kg2 {[%clk 0:00:41]}  Qd5 {[%clk 0:00:27]} 30. c4 {[%clk 0:00:31]}  bxc4 {[%clk 0:00:28]} 31. Bxa5 {[%clk 0:00:31]}  Qxa5 {[%clk 0:00:29]} 32. bxc4 {[%clk 0:00:31]}  Qxa3 {[%clk 0:00:20]} 33. c5 {[%clk 0:00:31]}  Bc7 {[%clk 0:00:21]} 34. Re6 {[%clk 0:00:28]}  Rf5 {[%clk 0:00:08]} 35. Rb7 {[%clk 0:00:23]}  Bf4 {[%clk 0:00:06]} 36. Rbb6 {[%clk 0:00:16]}  Nf8 {[%clk 0:00:04]} 37. Qe4 {[%clk 0:00:08]}  Qa2+ {[%clk 0:00:05]} 38. Kh3 {[%clk 0:00:08]}  g6 {[%clk 0:00:05]} 39. Rxg6 {[%clk 0:00:06]}  Rh5+ {[%clk 0:00:03]} 40. Kg4 {[%clk 0:00:06]}  Qxh2 {[%clk 0:00:04]} 41. Rxh6+ {[%clk 0:00:05]}  Kg7 {[%clk 0:00:04]} 42. Qe7+ {[%clk 0:00:02]}  Kg8 {[%clk 0:00:03]} 43. Rxh5 {[%clk 0:00:03]}  Qxg3+ {[%clk 0:00:02]} 44. Kf5 {[%clk 0:00:03]}  Qg6+ {[%clk 0:00:01]} 45. Rxg6+ {[%clk 0:00:03]} 1-0

[Event "December 5 Late 2023"]
[Site "https://www.chess.com"]
[Date "2023.12.05"]
[Round "5"]
[White "Kamsky, Gata"]
[Black "Sturt, Raven"]
[Result "1-0"]
[Board "26"]
[TimeControl "180+1"]
[WhiteFideId "2000024"]
[BlackFideId "2007304"]
[WhiteElo "2932"]
[BlackElo "2653"]
[WhiteTeam "USA"]
[BlackTeam "USA"]
[WhiteClock "0:00:03"]
[BlackClock "0:00:00"]

1. d4 {[%clk 0:03:00]}  f5 {[%clk 0:02:58]} 2. c4 {[%clk 0:02:57]}  Nf6 {[%clk 0:02:57]} 3. Nc3 {[%clk 0:02:58]}  g6 {[%clk 0:02:55]} 4. h4 {[%clk 0:02:57]}  d6 {[%clk 0:02:37]} 5. h5 {[%clk 0:02:53]}  Nxh5 {[%clk 0:02:32]} 6. Rxh5 {[%clk 0:02:50]}  gxh5 {[%clk 0:02:32]} 7. e4 {[%clk 0:02:45]}  Be6 {[%clk 0:02:32]} 8. Qxh5+ {[%clk 0:02:44]}  Bf7 {[%clk 0:02:32]} 9. Qxf5 {[%clk 0:02:42]}  Nc6 {[%clk 0:02:28]} 10. Be3 {[%clk 0:02:39]}  Bg7 {[%clk 0:02:19]} 11. Nf3 {[%clk 0:02:36]}  O-O {[%clk 0:02:18]} 12. Ng5 {[%clk 0:02:19]}  Bg6 {[%clk 0:02:15]} 13. Qe6+ {[%clk 0:02:08]}  Kh8 {[%clk 0:02:15]} 14. O-O-O {[%clk 0:02:07]}  Qc8 {[%clk 0:02:08]} 15. Nd5 {[%clk 0:02:01]}  Bh6 {[%clk 0:02:05]} 16. Qxc8 {[%clk 0:01:37]}  Raxc8 {[%clk 0:02:04]} 17. f3 {[%clk 0:01:36]}  e5 {[%clk 0:01:53]} 18. dxe5 {[%clk 0:01:34]}  Nxe5 {[%clk 0:01:44]} 19. Ne6 {[%clk 0:01:26]}  Bxe3+ {[%clk 0:01:42]} 20. Nxe3 {[%clk 0:01:26]}  Rf6 {[%clk 0:01:40]} 21. Nd4 {[%clk 0:01:25]}  c6 {[%clk 0:01:26]} 22. Kd2 {[%clk 0:01:22]}  Be8 {[%clk 0:01:11]} 23. Kc3 {[%clk 0:01:16]}  Bd7 {[%clk 0:01:11]} 24. b4 {[%clk 0:01:13]}  Rg8 {[%clk 0:01:03]} 25. Be2 {[%clk 0:01:08]}  Rg5 {[%clk 0:01:00]} 26. g4 {[%clk 0:01:01]}  Rf4 {[%clk 0:00:54]} 27. Ng2 {[%clk 0:00:51]}  Rf6 {[%clk 0:00:52]} 28. f4 {[%clk 0:00:47]}  Rxg4 {[%clk 0:00:47]} 29. Bxg4 {[%clk 0:00:43]}  Nxg4 {[%clk 0:00:41]} 30. f5 {[%clk 0:00:36]}  d5 {[%clk 0:00:30]} 31. cxd5 {[%clk 0:00:33]}  cxd5 {[%clk 0:00:29]} 32. exd5 {[%clk 0:00:33]}  Kg7 {[%clk 0:00:18]} 33. Nf4 {[%clk 0:00:32]}  Kf8 {[%clk 0:00:17]} 34. Re1 {[%clk 0:00:24]}  Bxf5 {[%clk 0:00:15]} 35. Nxf5 {[%clk 0:00:21]}  Rxf5 {[%clk 0:00:16]} 36. Ne6+ {[%clk 0:00:21]}  Kf7 {[%clk 0:00:16]} 37. d6 {[%clk 0:00:20]}  Nf6 {[%clk 0:00:16]} 38. Nd8+ {[%clk 0:00:19]}  Kg6 {[%clk 0:00:15]} 39. Nxb7 {[%clk 0:00:19]}  Rd5 {[%clk 0:00:13]} 40. Kc4 {[%clk 0:00:19]}  Rd2 {[%clk 0:00:12]} 41. a4 {[%clk 0:00:19]}  h5 {[%clk 0:00:12]} 42. Kb5 {[%clk 0:00:18]}  h4 {[%clk 0:00:12]} 43. Rh1 {[%clk 0:00:18]}  Kg5 {[%clk 0:00:07]} 44. a5 {[%clk 0:00:18]}  Rd4 {[%clk 0:00:07]} 45. Kc5 {[%clk 0:00:16]}  Rd2 {[%clk 0:00:06]} 46. b5 {[%clk 0:00:16]}  Nd7+ {[%clk 0:00:03]} 47. Kc6 {[%clk 0:00:15]}  Ne5+ {[%clk 0:00:04]} 48. Kc7 {[%clk 0:00:14]}  Rc2+ {[%clk 0:00:02]} 49. Kb8 {[%clk 0:00:14]}  Rb2 {[%clk 0:00:03]} 50. b6 {[%clk 0:00:13]}  axb6 {[%clk 0:00:04]} 51. a6 {[%clk 0:00:13]}  Ra2 {[%clk 0:00:04]} 52. Ka7 {[%clk 0:00:12]}  b5 {[%clk 0:00:03]} 53. Kb6 {[%clk 0:00:11]}  Nd7+ {[%clk 0:00:04]} 54. Kxb5 {[%clk 0:00:10]}  Ne5 {[%clk 0:00:02]} 55. Nc5 {[%clk 0:00:09]}  Kf5 {[%clk 0:00:01]} 56. d7 {[%clk 0:00:09]}  Rb2+ {[%clk 0:00:02]} 57. Ka4 {[%clk 0:00:08]}  Rd2 {[%clk 0:00:03]} 58. Rxh4 {[%clk 0:00:05]}  Nxd7 {[%clk 0:00:03]} 59. Nxd7 {[%clk 0:00:05]}  Rxd7 {[%clk 0:00:04]} 60. Kb5 {[%clk 0:00:05]}  Ke6 {[%clk 0:00:04]} 61. Kb6 {[%clk 0:00:05]}  Rd6+ {[%clk 0:00:04]} 62. Ka5 {[%clk 0:00:05]}  Rd5+ {[%clk 0:00:05]} 63. Ka4 {[%clk 0:00:05]}  Rd8 {[%clk 0:00:05]} 64. a7 {[%clk 0:00:04]}  Kd5 {[%clk 0:00:00]} 65. Kb5 {[%clk 0:00:03]} 1-0

[Event "December 5 Late 2023"]
[Site "https://www.chess.com"]
[Date "2023.12.05"]
[Round "5"]
[White "Sjugirov, Sanan"]
[Black "Krishnan, Varun"]
[Result "1-0"]
[Board "29"]
[TimeControl "180+1"]
[WhiteFideId "4189302"]
[BlackFideId "5054508"]
[WhiteElo "2917"]
[BlackElo "2647"]
[WhiteTeam "HUN"]
[BlackTeam "USA"]
[WhiteClock "0:02:12"]
[BlackClock "0:00:01"]

1. e4 {[%clk 0:02:58]}  c5 {[%clk 0:02:58]} 2. Nf3 {[%clk 0:02:58]}  Nc6 {[%clk 0:02:58]} 3. Bb5 {[%clk 0:02:58]}  d6 {[%clk 0:02:56]} 4. O-O {[%clk 0:02:57]}  Bd7 {[%clk 0:02:56]} 5. Re1 {[%clk 0:02:58]}  Nf6 {[%clk 0:02:54]} 6. c3 {[%clk 0:02:58]}  a6 {[%clk 0:02:52]} 7. Bf1 {[%clk 0:02:59]}  Bg4 {[%clk 0:02:51]} 8. h3 {[%clk 0:02:59]}  Bxf3 {[%clk 0:02:51]} 9. Qxf3 {[%clk 0:03:00]}  g6 {[%clk 0:02:51]} 10. d3 {[%clk 0:03:01]}  Bg7 {[%clk 0:02:51]} 11. Be3 {[%clk 0:03:02]}  Nd7 {[%clk 0:02:49]} 12. Nd2 {[%clk 0:03:02]}  O-O {[%clk 0:02:49]} 13. Qd1 {[%clk 0:03:02]}  b5 {[%clk 0:02:46]} 14. Nf3 {[%clk 0:03:02]}  b4 {[%clk 0:02:44]} 15. d4 {[%clk 0:03:01]}  bxc3 {[%clk 0:02:21]} 16. bxc3 {[%clk 0:03:02]}  e5 {[%clk 0:02:20]} 17. d5 {[%clk 0:02:56]}  Ne7 {[%clk 0:02:19]} 18. Qa4 {[%clk 0:02:55]}  h6 {[%clk 0:02:15]} 19. Rab1 {[%clk 0:02:52]}  Qc7 {[%clk 0:02:02]} 20. Nd2 {[%clk 0:02:43]}  f5 {[%clk 0:01:56]} 21. f3 {[%clk 0:02:43]}  f4 {[%clk 0:01:44]} 22. Bf2 {[%clk 0:02:43]}  g5 {[%clk 0:01:41]} 23. Nc4 {[%clk 0:02:43]}  a5 {[%clk 0:01:19]} 24. Rb5 {[%clk 0:02:42]}  h5 {[%clk 0:01:04]} 25. Reb1 {[%clk 0:02:42]}  Nf6 {[%clk 0:00:52]} 26. Rxa5 {[%clk 0:02:30]}  Rxa5 {[%clk 0:00:13]} 27. Qxa5 {[%clk 0:02:31]}  Qc8 {[%clk 0:00:14]} 28. Nxd6 {[%clk 0:02:29]}  Qd7 {[%clk 0:00:14]} 29. Qxc5 {[%clk 0:02:25]}  g4 {[%clk 0:00:13]} 30. hxg4 {[%clk 0:02:24]}  hxg4 {[%clk 0:00:13]} 31. Rb7 {[%clk 0:02:24]}  Qd8 {[%clk 0:00:13]} 32. Qb6 {[%clk 0:02:19]}  Qa8 {[%clk 0:00:09]} 33. Rxe7 {[%clk 0:02:17]}  g3 {[%clk 0:00:09]} 34. Bc5 {[%clk 0:02:16]}  Qxa2 {[%clk 0:00:05]} 35. Nf5 {[%clk 0:02:15]}  Nh5 {[%clk 0:00:02]} 36. Qg6 {[%clk 0:02:12]}  Rxf5 {[%clk 0:00:02]} 37. Re8+ {[%clk 0:02:11]}  Rf8 {[%clk 0:00:01]} 38. Rxf8# {[%clk 0:02:12]} 1-0

[Event "December 5 Late 2023"]
[Site "https://www.chess.com"]
[Date "2023.12.05"]
[Round "5"]
[White "Ehlvest, Jaan"]
[Black "Melkumyan, Hrant"]
[Result "0-1"]
[Board "30"]
[TimeControl "180+1"]
[WhiteFideId "4500016"]
[BlackFideId "13302485"]
[WhiteElo "2645"]
[BlackElo "2908"]
[WhiteTeam "USA"]
[BlackTeam "ARM"]
[WhiteClock "0:00:44"]
[BlackClock "0:00:43"]

1. e4 {[%clk 0:03:00]}  c6 {[%clk 0:02:50]} 2. Nc3 {[%clk 0:02:59]}  d5 {[%clk 0:02:48]} 3. Nf3 {[%clk 0:02:59]}  Bg4 {[%clk 0:02:48]} 4. h3 {[%clk 0:02:58]}  Bxf3 {[%clk 0:02:49]} 5. Qxf3 {[%clk 0:02:58]}  e6 {[%clk 0:02:50]} 6. g3 {[%clk 0:02:57]}  Nd7 {[%clk 0:02:48]} 7. Bg2 {[%clk 0:02:56]}  Bc5 {[%clk 0:02:49]} 8. O-O {[%clk 0:02:56]}  Ne7 {[%clk 0:02:46]} 9. Rd1 {[%clk 0:02:56]}  Bd4 {[%clk 0:02:38]} 10. Ne2 {[%clk 0:02:38]}  dxe4 {[%clk 0:02:28]} 11. Qxe4 {[%clk 0:02:38]}  Bb6 {[%clk 0:02:29]} 12. d4 {[%clk 0:02:37]}  Nf6 {[%clk 0:02:27]} 13. Qf3 {[%clk 0:02:35]}  O-O {[%clk 0:02:25]} 14. Bg5 {[%clk 0:02:34]}  Nf5 {[%clk 0:02:23]} 15. c3 {[%clk 0:02:33]}  h6 {[%clk 0:02:21]} 16. Bf4 {[%clk 0:02:30]}  Nd5 {[%clk 0:02:20]} 17. Bd2 {[%clk 0:02:28]}  a5 {[%clk 0:02:18]} 18. a3 {[%clk 0:02:27]}  a4 {[%clk 0:02:15]} 19. c4 {[%clk 0:02:27]}  Nf6 {[%clk 0:02:11]} 20. Bc3 {[%clk 0:02:26]}  Ba5 {[%clk 0:02:02]} 21. Nf4 {[%clk 0:02:12]}  Nd6 {[%clk 0:01:54]} 22. Bf1 {[%clk 0:02:06]}  Re8 {[%clk 0:01:51]} 23. Rac1 {[%clk 0:02:04]}  Bxc3 {[%clk 0:01:45]} 24. bxc3 {[%clk 0:02:03]}  Qa5 {[%clk 0:01:45]} 25. Rb1 {[%clk 0:01:57]}  e5 {[%clk 0:01:32]} 26. c5 {[%clk 0:01:49]}  exf4 {[%clk 0:01:26]} 27. cxd6 {[%clk 0:01:49]}  fxg3 {[%clk 0:01:25]} 28. fxg3 {[%clk 0:01:41]}  Rad8 {[%clk 0:01:05]} 29. Rxb7 {[%clk 0:01:38]}  Rxd6 {[%clk 0:01:05]} 30. Bc4 {[%clk 0:01:38]}  Rf8 {[%clk 0:01:05]} 31. Re1 {[%clk 0:01:34]}  Rd7 {[%clk 0:00:51]} 32. Rxd7 {[%clk 0:01:27]}  Nxd7 {[%clk 0:00:52]} 33. Re7 {[%clk 0:01:26]}  Nf6 {[%clk 0:00:53]} 34. Qxc6 {[%clk 0:01:26]}  Qg5 {[%clk 0:00:52]} 35. Qf3 {[%clk 0:01:24]}  Qc1+ {[%clk 0:00:52]} 36. Kg2 {[%clk 0:01:23]}  Qxa3 {[%clk 0:00:52]} 37. Ra7 {[%clk 0:01:21]}  Qb2+ {[%clk 0:00:52]} 38. Kg1 {[%clk 0:01:17]}  a3 {[%clk 0:00:51]} 39. Rxf7 {[%clk 0:01:04]}  Rxf7 {[%clk 0:00:47]} 40. Qa8+ {[%clk 0:01:04]}  Kh7 {[%clk 0:00:47]} 41. Bxf7 {[%clk 0:00:44]}  Qxc3 {[%clk 0:00:43]} 0-1

[Event "December 5 Late 2023"]
[Site "https://www.chess.com"]
[Date "2023.12.05"]
[Round "5"]
[White "Tanriverdi, Enes"]
[Black "Hong, Andrew"]
[Result "1/2-1/2"]
[Board "34"]
[TimeControl "180+1"]
[WhiteFideId "34543279"]
[BlackFideId "2099438"]
[WhiteElo "2625"]
[BlackElo "2860"]
[WhiteTeam "TUR"]
[BlackTeam "USA"]
[WhiteClock "0:00:15"]
[BlackClock "0:01:28"]

1. d4 {[%clk 0:02:58]}  Nf6 {[%clk 0:02:59]} 2. Nf3 {[%clk 0:02:58]}  d5 {[%clk 0:02:58]} 3. c4 {[%clk 0:02:58]}  e6 {[%clk 0:02:55]} 4. Nc3 {[%clk 0:02:58]}  Bb4 {[%clk 0:02:52]} 5. Bg5 {[%clk 0:02:49]}  h6 {[%clk 0:02:52]} 6. Bxf6 {[%clk 0:02:48]}  Qxf6 {[%clk 0:02:53]} 7. e3 {[%clk 0:02:48]}  O-O {[%clk 0:02:53]} 8. Rc1 {[%clk 0:02:45]}  Rd8 {[%clk 0:02:52]} 9. a3 {[%clk 0:02:43]}  Bf8 {[%clk 0:02:51]} 10. cxd5 {[%clk 0:02:39]}  exd5 {[%clk 0:02:52]} 11. Bd3 {[%clk 0:02:35]}  c6 {[%clk 0:02:52]} 12. Ne5 {[%clk 0:02:29]}  Nd7 {[%clk 0:02:40]} 13. f4 {[%clk 0:02:28]}  Nb6 {[%clk 0:02:40]} 14. O-O {[%clk 0:02:28]}  Bf5 {[%clk 0:02:40]} 15. Bxf5 {[%clk 0:02:19]}  Qxf5 {[%clk 0:02:41]} 16. g4 {[%clk 0:02:19]}  Qe6 {[%clk 0:02:34]} 17. g5 {[%clk 0:02:13]}  Qf5 {[%clk 0:02:16]} 18. Kh1 {[%clk 0:01:50]}  Kh7 {[%clk 0:02:11]} 19. Ne2 {[%clk 0:01:18]}  Qe4+ {[%clk 0:02:09]} 20. Rf3 {[%clk 0:01:19]}  Kg8 {[%clk 0:01:51]} 21. Ng3 {[%clk 0:01:16]}  Qh7 {[%clk 0:01:51]} 22. Qe2 {[%clk 0:00:51]}  Nc8 {[%clk 0:01:50]} 23. Rg1 {[%clk 0:00:49]}  Nd6 {[%clk 0:01:48]} 24. Nh5 {[%clk 0:00:45]}  Qf5 {[%clk 0:01:37]} 25. Ng3 {[%clk 0:00:26]}  Qh7 {[%clk 0:01:36]} 26. Nh5 {[%clk 0:00:15]}  Qf5 {[%clk 0:01:34]} 27. Ng3 {[%clk 0:00:15]}  Qh7 {[%clk 0:01:28]} 1/2-1/2

[Event "December 5 Late 2023"]
[Site "https://www.chess.com"]
[Date "2023.12.05"]
[Round "5"]
[White "Shuvalova, Polina"]
[Black "Sivakumar, Shaaketh"]
[Result "0-1"]
[Board "37"]
[TimeControl "180+1"]
[WhiteFideId "24171760"]
[BlackFideId "30940176"]
[WhiteElo "2849"]
[BlackElo "2587"]
[WhiteTeam "RUS"]
[BlackTeam "USA"]
[WhiteClock "0:00:20"]
[BlackClock "0:00:15"]

1. e4 {[%clk 0:03:00]}  e6 {[%clk 0:02:26]} 2. d4 {[%clk 0:02:59]}  d5 {[%clk 0:02:26]} 3. Nd2 {[%clk 0:02:59]}  c5 {[%clk 0:02:18]} 4. exd5 {[%clk 0:02:58]}  exd5 {[%clk 0:02:15]} 5. Ngf3 {[%clk 0:02:59]}  Nc6 {[%clk 0:02:11]} 6. Bb5 {[%clk 0:02:59]}  Qe7+ {[%clk 0:02:11]} 7. Qe2 {[%clk 0:02:57]}  Qxe2+ {[%clk 0:02:10]} 8. Kxe2 {[%clk 0:02:58]}  a6 {[%clk 0:02:11]} 9. Bxc6+ {[%clk 0:02:57]}  bxc6 {[%clk 0:02:12]} 10. Re1 {[%clk 0:02:57]}  f6 {[%clk 0:02:11]} 11. Nb3 {[%clk 0:02:53]}  c4 {[%clk 0:02:07]} 12. Nc5 {[%clk 0:02:51]}  Kf7 {[%clk 0:02:06]} 13. b3 {[%clk 0:02:50]}  a5 {[%clk 0:02:04]} 14. bxc4 {[%clk 0:02:46]}  Bxc5 {[%clk 0:02:04]} 15. dxc5 {[%clk 0:02:46]}  Ba6 {[%clk 0:02:05]} 16. Bf4 {[%clk 0:02:39]}  Bxc4+ {[%clk 0:02:03]} 17. Kd2 {[%clk 0:02:39]}  Ne7 {[%clk 0:02:03]} 18. Nd4 {[%clk 0:02:37]}  Rac8 {[%clk 0:02:03]} 19. Bd6 {[%clk 0:02:36]}  Ng6 {[%clk 0:02:03]} 20. Rab1 {[%clk 0:02:27]}  Rhe8 {[%clk 0:01:44]} 21. Rb7+ {[%clk 0:02:24]}  Kg8 {[%clk 0:01:44]} 22. Rxe8+ {[%clk 0:02:15]}  Rxe8 {[%clk 0:01:45]} 23. Nxc6 {[%clk 0:02:16]}  Re2+ {[%clk 0:01:44]} 24. Kc3 {[%clk 0:02:16]}  Rxf2 {[%clk 0:01:44]} 25. Nxa5 {[%clk 0:02:12]}  Be2 {[%clk 0:01:32]} 26. h3 {[%clk 0:01:54]}  Bd1 {[%clk 0:01:32]} 27. Rb2 {[%clk 0:01:50]}  Kf7 {[%clk 0:01:17]} 28. c6 {[%clk 0:01:50]}  Ke6 {[%clk 0:01:17]} 29. c7 {[%clk 0:01:21]}  Kd7 {[%clk 0:01:18]} 30. Nc6 {[%clk 0:01:12]}  d4+ {[%clk 0:01:14]} 31. Kd3 {[%clk 0:01:03]}  Nf4+ {[%clk 0:00:47]} 32. Ke4 {[%clk 0:00:44]}  Ne6 {[%clk 0:00:43]} 33. Rb7 {[%clk 0:00:08]}  Bxc2+ {[%clk 0:00:42]} 34. Kd5 {[%clk 0:00:08]}  Bd3 {[%clk 0:00:20]} 35. Ne7 {[%clk 0:00:06]}  Nxc7+ {[%clk 0:00:14]} 36. Rxc7+ {[%clk 0:00:07]}  Ke8 {[%clk 0:00:15]} 37. Kxd4 {[%clk 0:00:08]}  Bf1 {[%clk 0:00:15]} 38. Nd5 {[%clk 0:00:05]}  Rd2+ {[%clk 0:00:14]} 39. Kc5 {[%clk 0:00:03]}  Bxg2 {[%clk 0:00:08]} 40. Re7+ {[%clk 0:00:04]}  Kd8 {[%clk 0:00:08]} 41. Bc7+ {[%clk 0:00:04]}  Kc8 {[%clk 0:00:09]} 42. Nb6+ {[%clk 0:00:04]}  Kb7 {[%clk 0:00:09]} 43. Bf4+ {[%clk 0:00:05]}  Rd7 {[%clk 0:00:08]} 44. Bd2 {[%clk 0:00:06]}  Rxe7 {[%clk 0:00:09]} 45. a4 {[%clk 0:00:03]}  Re5+ {[%clk 0:00:09]} 46. Kd6 {[%clk 0:00:03]}  Kxb6 {[%clk 0:00:09]} 47. Bf4 {[%clk 0:00:03]}  Ra5 {[%clk 0:00:08]} 48. Be3+ {[%clk 0:00:03]}  Ka6 {[%clk 0:00:09]} 49. Bd2 {[%clk 0:00:03]}  Rxa4 {[%clk 0:00:09]} 50. Ke7 {[%clk 0:00:04]}  Rh4 {[%clk 0:00:09]} 51. Kf7 {[%clk 0:00:03]}  g6 {[%clk 0:00:10]} 52. Bc3 {[%clk 0:00:03]}  Rxh3 {[%clk 0:00:10]} 53. Bxf6 {[%clk 0:00:04]}  Rf3 {[%clk 0:00:10]} 54. Kg7 {[%clk 0:00:04]}  Rxf6 {[%clk 0:00:11]} 55. Kxf6 {[%clk 0:00:05]}  Be4 {[%clk 0:00:11]} 56. Kg5 {[%clk 0:00:06]}  Bf5 {[%clk 0:00:11]} 57. Kh6 {[%clk 0:00:06]}  Kb5 {[%clk 0:00:10]} 58. Kg5 {[%clk 0:00:07]}  h5 {[%clk 0:00:10]} 59. Kh4 {[%clk 0:00:07]}  Kc6 {[%clk 0:00:11]} 60. Kg5 {[%clk 0:00:08]}  Kd7 {[%clk 0:00:12]} 61. Kf4 {[%clk 0:00:08]}  Ke7 {[%clk 0:00:12]} 62. Kg5 {[%clk 0:00:09]}  Kf7 {[%clk 0:00:13]} 63. Kh4 {[%clk 0:00:10]}  Kf6 {[%clk 0:00:13]} 64. Kg3 {[%clk 0:00:11]}  g5 {[%clk 0:00:13]} 65. Kh2 {[%clk 0:00:12]}  g4 {[%clk 0:00:13]} 66. Kg3 {[%clk 0:00:13]}  Kg5 {[%clk 0:00:14]} 67. Kh2 {[%clk 0:00:14]}  h4 {[%clk 0:00:14]} 68. Kg2 {[%clk 0:00:15]}  g3 {[%clk 0:00:15]} 69. Kh1 {[%clk 0:00:15]}  Kg4 {[%clk 0:00:15]} 70. Kg1 {[%clk 0:00:16]}  h3 {[%clk 0:00:15]} 71. Kh1 {[%clk 0:00:17]}  Be4+ {[%clk 0:00:15]} 72. Kg1 {[%clk 0:00:18]}  h2+ {[%clk 0:00:16]} 73. Kf1 {[%clk 0:00:18]}  h1=Q+ {[%clk 0:00:16]} 74. Ke2 {[%clk 0:00:19]}  Qf3+ {[%clk 0:00:17]} 75. Kd2 {[%clk 0:00:19]}  Qd3+ {[%clk 0:00:17]} 76. Ke1 {[%clk 0:00:20]}  Qc2 {[%clk 0:00:16]} 77. Kf1 {[%clk 0:00:20]}  Qf2# {[%clk 0:00:15]} 0-1